Cogmind - Beta 16 @@@ ROGUE MODE // 2025.12.28 @ 17:46:10 // Winter2022/Polymind Player: Compilatron Result: Destroyed by YI-UF0 with YI-UF0's Doublenader Performance ------------- Evolutions (1) 500 Regions Visited (3) 600 Robots Destroyed (18) 90 Value Destroyed (412) 412 Prototype IDs (0) 0 Alien Tech Used (0) 0 Bonus (1930) 1930 TOTAL SCORE: 2792 Bonus ------- Polymind Skill 1730 Pacifist 200 Cogmind --------- Core Integrity 0/400 Matter 0/0 Energy 16/100 System Corruption 0% Temperature Cool (0) Movement Core (50) Location -9/Mines Parts ------- > --- POWER (1) -------- (None) > --- PROPULSION (2) --- (None) > --- UTILITY (3) ------ (None) > --- WEAPON (2) ------- (None) > --- INVENTORY (0) ---- (None) Peak State ------------ > --- POWER ------------ Light Ion Engine > --- PROPULSION ------- Wheel Wheel > --- UTILITY ---------- Machine Analyzer Recalibrator > --- WEAPON ----------- (None) > --- INVENTORY -------- Backup Power I Backup Power I Backup Propulsion I Backup Propulsion I Backup Propulsion I Backup Propulsion I Backup Plating I Backup Plating I Backup Laser I Backup Laser I Backup Laser I Backup Laser I [Rating: 11] Favorites ----------- Power Improved Ion Engine Engine Improved Ion Engine Propulsion Light Treads Treads Light Treads Wheel Wheel Utility Heat Sink Device Heat Sink Processor Machine Analyzer Protection Light Armor Plating Weapon Beam Rifle Energy Gun Beam Rifle Ballistic Gun Heavy Assault Rifle Build | -11 -10 -9 -9 ------- Run | Yrd Mat Mat Min Slots Evolved . | . . . . Power . | . . . . Propulsion . | . . . . Utility . | . . . . Weapon . | . . . . Parts Attached . | . . . . Power . | . . . . Engine . | . . . . Core . | . . . . Reactor . | . . . . Propulsion . | . . . . Treads . | . . . . Leg . | . . . . Wheel . | . . . . Hover . | . . . . Flight . | . . . . Utility . | . . . . Device . | . . . . Storage . | . . . . Processor . | . . . . Hackware . | . . . . Protection . | . . . . Artifact . | . . . . Weapon . | . . . . Energy Gun . | . . . . Energy Cannon . | . . . . Ballistic Gun . | . . . . Ballistic Cannon . | . . . . Launcher . | . . . . Special Weapon . | . . . . Impact Weapon . | . . . . Slashing Weapon . | . . . . Piercing Weapon . | . . . . Special Melee Weapon . | . . . . Unidentified Prototypes . | . . . . Parts Lost 9 | . 4 1 4 Power 2 | . 1 . 1 Propulsion 4 | . 2 . 2 Utility 2 | . 1 1 . Weapon 1 | . . . 1 Highest Loss Streak 4 | . 4 1 2 To Critical Strikes . | . . . . Average Backups 1 | . 11 . . Power . | . 1 . . Propulsion . | . 3 . . Utility . | . 1 . . Weapon . | . 3 . . Tool/Special . | . . . . Unused Backups 12 | . . 12 . Power 2 | . . 2 . Propulsion 4 | . . 4 . Utility 2 | . . 2 . Weapon 4 | . . 4 . Tool/Special . | . . . . Average Slot Usage (%) 84 | . 84 86 83 Engine 11 | . 15 11 10 Treads 21 | . . 23 23 Wheel 3 | . 32 . . Device 24 | . 19 24 25 Processor 1 | . 18 . . Energy Gun 10 | . . 11 12 Ballistic Gun 10 | . . 11 12 Peak Build Rating 11 | . 11 11 10 Average Rating 9 | . 9 9 9 On Entrance 3 | . . 5 10 Avg Prop Armor Cover (%) . | . . . . Naked Turns 38 | . 8 28 2 Heaviest Build 18 | . 4 18 15 Greatest Support 40 | 3 20 40 40 Greatest Overweight (x) 2 | . . . 2 Average Overweight (x) . | . . . . Largest Inventory Capacity 12 | . 12 12 1 Average Capacity 1 | . 11 . . Most Carried 12 | . 12 12 . Average Carried 1 | . 11 . . Final Capacity 12 | . 12 1 . Final Carried 12 | . 12 . . Class Distribution -------------------- 89% | Sentry 8% | Mechanic Dominant Class ---------------- Mechanic | -10/Materials Sentry | -9/Materials Sentry | -9/Mines Resources | -11 -10 -9 -9 ----------- Run | Yrd Mat Mat Min Matter Collected 99 | . . 34 65 Remotely . | . . . . Salvage Created 398 | . . 91 307 Parts 40 | . . 18 22 Haulers Intercepted . | . . . . Recyclers Shooed . | . . . . Parts Field Recycled . | . . . . Retrieved Matter . | . . . . Parts Self-Destructed . | . . . . Prevented . | . . . . Parts Restored . | . . . . Kills | -11 -10 -9 -9 ------- Run | Yrd Mat Mat Min Combat Hostiles Destroyed 16 | . . 5 11 Guns 16 | . . 5 11 Classes Destroyed 7 | . . 4 3 Worker 1 | . . 1 . Tunneler 1 | . . . 1 Watcher 1 | . . 1 . Swarmer 6 | . . 3 3 Grunt 7 | . . . 7 Sentry 2 | . . 2 . Assembled 1 | . . . 1 Best Kill Streak 7 | . . 7 4 Combat Bots Only 5 | . . 5 4 Max Kills in Single Turn 2 | . . 2 1 Gunslinging . | . . . . Exploded . | . . . . Melee . | . . . . Uniques/NPCs Destroyed . | . . . . Combat | -11 -10 -9 -9 -------- Run | Yrd Mat Mat Min Hostile Shots Fired 164 | . 50 30 84 Missed 39 | . 14 6 19 Hits 125 | . 36 24 65 Projectile 125 | . 36 24 65 AOE 14 | . . . 14 Critical Strikes 6 | . 4 1 1 Damage Taken 1389 | . 326 303 760 Core 593 | . 180 65 348 Absorbed by Shields . | . . . . Ignored by Resistances 226 | . . . 226 Core Remaining (%) 64 | 100 28 . . Volleys Fired 37 | . . 12 25 Largest 2 | . . 2 2 Hottest 79 | . . 79 79 Shots Fired 74 | . . 24 50 Gun 74 | . . 24 50 Cannon . | . . . . Launcher . | . . . . Special . | . . . . Kinetic 37 | . . 12 25 Thermal 37 | . . 12 25 Explosive . | . . . . Electromagnetic . | . . . . Robot Hit Streak 8 | . . 8 4 Robot Miss Streak 4 | . . 2 4 Penetration Max . | . . . . Secondary Targets 5 | . . 1 4 Max Gunslinging Chain 1 | . . 1 1 Shots Hit Robots 41 | . . 17 24 Core Hits 27 | . 3 9 15 Critical Kills . | . . . . Critical Parts Destroyed . | . . . . Critical Strikes 5 | . . 2 3 Burn 4 | . . 1 3 Destroy 1 | . . 1 . Melee Attacks . | . . . . Impact . | . . . . Slashing . | . . . . Piercing . | . . . . Sneak Attacks . | . . . . Combat Hostiles . | . . . . Follow-up Attacks . | . . . . Damage Inflicted 721 | . 40 303 378 Guns 681 | . . 303 378 Cannons . | . . . . Explosions . | . . . . Melee . | . . . . Ramming 40 | . 40 . . Kinetic 343 | . . 153 190 Thermal 338 | . . 150 188 Explosive . | . . . . Electromagnetic . | . . . . Impact . | . . . . Slashing . | . . . . Piercing . | . . . . Highest Corruption 3 | . 3 . . Average Corruption 3 | . 3 . . Corruption Purged . | . . . . Corruption Blocked . | . . . . Overload Shots . | . . . . Overflow Damage . | . . . . Projectiles . | . . . . Explosions . | . . . . Melee . | . . . . Knockbacks . | . . . . Impact . | . . . . Kinetic . | . . . . Secondary . | . . . . Self-Inflicted Damage 14 | . 14 . . Shots . | . . . . Rammed 26 | . 26 . . Targets Rammed 26 | . 26 . . Kicked . | . . . . Crushed . | . . . . Highest Temperature 17 | . . 17 4 Average Temperature 5 | . . 7 2 Received Heat Transfer 171 | . . 54 117 Siege Activations . | . . . . Martial Activations . | . . . . Shielding Activations . | . . . . Robots Disrupted . | . . . . Combat Hostiles . | . . . . Robots Corrupted . | . . . . Combat Hostiles . | . . . . Parts Fried . | . . . . Impact Corruptions . | . . . . Robots Melted . | . . . . Combat Hostiles . | . . . . Parts Melted 1 | . . . 1 Heat Transferred 1147 | . . 444 703 Parts Sabotaged . | . . . . Parts Stolen . | . . . . Parts Stripped . | . . . . Power Chain Reactions . | . . . . Alert | -11 -10 -9 -9 ------- Run | Yrd Mat Mat Min Maximum Alert Level . | . . . . Low Security (%) 100 | . 100 100 100 Level 1 . | . . . . Level 2 . | . . . . Level 3 . | . . . . Level 4 . | . . . . Level 5 . | . . . . High Security . | . . . . Max Security . | . . . . Peak Influence 135 | . 5 122 135 Initial . | . . . . Average 21 | . . 22 24 Influence Increases 362 | . 5 142 215 Destroy 0b10 Robot/C 300 | . . 100 200 Destroy 0b10 Robot/NC 15 | . . 10 5 Destroy Leader 42 | . . 32 10 Successful Hack 5 | . 5 . . Influence Decreases 293 | . 5 142 146 Time Decay 243 | . 5 132 106 Lost Part 50 | . . 10 40 Squads Dispatched . | . . . . Investigation . | . . . . Extermination . | . . . . Reinforcement . | . . . . Assault . | . . . . Garrison . | . . . . Intercept . | . . . . Searches Triggered . | . . . . Construction Impeded . | . . . . Haulers Reinforced . | . . . . Active Scanning Responses . | . . . . Cargo Convoy Interrupts . | . . . . Stealth | -11 -10 -9 -9 --------- Run | Yrd Mat Mat Min Distress Signals 2 | . 1 . 1 Communications Jammed . | . . . . Distress Signals . | . . . . Times Spotted 25 | . 5 8 12 Peak Tracking Total 5 | . 5 5 4 Tactical Retreats . | . . . . Traps | -11 -10 -9 -9 ------- Run | Yrd Mat Mat Min Traps Triggered . | . . . . Indirectly . | . . . . Trap Hack Attempts . | . . . . Triggered . | . . . . Disarmed . | . . . . Reprogrammed . | . . . . Reused . | . . . . Traps Extracted . | . . . . Installed . | . . . . Triggered . | . . . . Machines | -11 -10 -9 -9 ---------- Run | Yrd Mat Mat Min Machines Disabled . | . . . . Max in Single Turn . | . . . . Machines Repaired . | . . . . Machines Dismantled . | . . . . Machines Sabotaged . | . . . . Overloaded Fab Kills . | . . . . Hacking | -11 -10 -9 -9 --------- Run | Yrd Mat Mat Min Machines Accessed 1 | . 1 . . Terminals 1 | . 1 . . Fabricators . | . . . . Repair Stations . | . . . . Recycling Units . | . . . . Scanalyzers . | . . . . Garrison Access . | . . . . Total Hacks 4 | . 4 . . Successful 2 | . 2 . . Failed 2 | . 2 . . Catastrophic . | . . . . Database Lockouts . | . . . . Manual 3 | . 3 . . Terminals 4 | . 4 . . Fabricators . | . . . . Repair Stations . | . . . . Recycling Units . | . . . . Scanalyzers . | . . . . Garrison Access . | . . . . Terminal Hacks 1 | . 1 . . Zone Layout 1 | . 1 . . Fabricator Hacks . | . . . . Repair Station Hacks . | . . . . Recycling Unit Hacks . | . . . . Scanalyzer . | . . . . Garrison Access Hacks . | . . . . Unauthorized Hacks 1 | . 1 . . Terminals 1 | . 1 . . Botnet 1 | . 1 . . Fabricators . | . . . . Repair Stations . | . . . . Recycling Units . | . . . . Scanalyzers . | . . . . Garrison Access . | . . . . Data Cores Recovered . | . . . . Used . | . . . . Hacking Detections . | . . . . Full Trace Events . | . . . . Feedback Events . | . . . . Feedback Blocked . | . . . . Robot Schematics Acquired . | . . . . Robots Built . | . . . . Authchips . | . . . . Time . | . . . . Total Robot Build Rating . | . . . . Part Schematics Acquired . | . . . . Parts Built . | . . . . Authchips . | . . . . Time . | . . . . Total Part Build Rating . | . . . . Part Studies Acquired . | . . . . Parts Repaired . | . . . . Time . | . . . . Parts Recycled . | . . . . Recycled Matter . | . . . . Retrieved Matter . | . . . . Retrieved Components . | . . . . Parts Scanalyzed . | . . . . Part Schematics Acquired . | . . . . Parts Damaged . | . . . . Bothacking | -11 -10 -9 -9 ------------ Run | Yrd Mat Mat Min Used RIF Installer . | . . . . Robots Hacked 2 | . 1 1 . Non-combat 1 | . 1 . . Combat 1 | . . 1 . Robot Hacks Applied 2 | . 1 1 . find_station 1 | . 1 . . find_shortcuts 1 | . . 1 . Relay Couplers Released . | . . . . Fabnet Peak Effective % . | . . . . Robots Rewired . | . . . . Allies Hacked . | . . . . Hacks Repelled . | . . . . Allies | -11 -10 -9 -9 -------- Run | Yrd Mat Mat Min Total Allies . | . . . . Largest Group . | . . . . Highest-Rated Group . | . . . . Highest-Rated Ally . | . . . . Total Orders . | . . . . Ally Attacks . | . . . . Total Damage . | . . . . Kills . | . . . . Allies Corrupted . | . . . . Allies Melted . | . . . . Intel | -11 -10 -9 -9 ------- Run | Yrd Mat Mat Min Active Infowar (turns) 154 | . 154 . . Machine Analysis 154 | . 154 . . Robot Analysis Total 2 | . 1 1 . Derelict Logs Recovered 2 | . . . 2 Drone Launches . | . . . . Drone Recoveries . | . . . . Exploration | -11 -10 -9 -9 ------------- Run | Yrd Mat Mat Min Turns Passed 2198 | . 199 728 1271 Spaces Moved 675 | 1 231 115 328 Core 64 | 1 39 14 10 Treads 419 | . . 101 318 Legs . | . . . . Wheels 192 | . 192 . . Hover . | . . . . Flight . | . . . . Fastest Speed 50 | 50 50 50 50 Average Speed 127 | 50 74 146 158 Slowest Speed 160 | 50 80 160 160 Overloaded Moves . | . . . . Propulsion Burnouts . | . . . . Robots Hopped . | . . . . Potential Cave-ins . | . . . . Cave-ins Triggered . | . . . . Exploration Rate (%) 34 | 2 43 18 74 Regions Visited 3 Branch Regions 1 Pre-discovered Areas 1 | . . . 1 Known Exits Taken . | . . . . Unknown Exits Taken 3 | 1 1 1 . Scrap Searched 2 | . . . 2 Spaces Dug . | . . . . Terrain Destroyed . | . . . . Melee . | . . . . Projectile . | . . . . AOE . | . . . . Terrain Rammed . | . . . . Walls Destroyed . | . . . . Machines Disabled . | . . . . Actions | -11 -10 -9 -9 --------- Run | Yrd Mat Mat Min Total 1936 | . 256 651 1029 Wait 1201 | . . 525 676 Move 672 | . 230 114 328 Hop . | . . . . Pick Up . | . . . . Fast Attach . | . . . . Attach . | . . . . Detach . | . . . . Swap . | . . . . Drop . | . . . . Fire 37 | . . 12 25 Melee . | . . . . Ram 26 | . 26 . . Kick . | . . . . Crush . | . . . . Escape Stasis . | . . . . Rewire . | . . . . Trap . | . . . . Miscellaneous . | . . . . Route ------- -11/Scrapyard -10/Materials (discovered 2 exits: [*Mat x2]) -9/Materials -9/Mines (discovered 2 exits: [*Mat x2]) History --------- Turn | Location | Event 1 | -11/Scrapyard | Discovered new exit (range 0) 1 | -11/Scrapyard | Entered Materials 36 | -10/Materials | Discovered new exit (range 16) 147 | -10/Materials | Discovered new exit (range 8) 187 | -10/Materials | Core integrity fell below 50% 200 | -10/Materials | Entered another Materials area 221 | -9/Materials | Lost 4 parts (1p2n1u) 924 | -9/Materials | Discovered new exit (range 3) 928 | -9/Materials | Entered Mines 1026 | -9/Mines | Discovered new exit (range 14) 1150 | -9/Mines | Excavation squad dispatched 1150 | -9/Mines | A large section of the Mines collapsed 1400 | -9/Mines | Excavation squad dispatched 1650 | -9/Mines | Excavation squad dispatched 2014 | -9/Mines | Core integrity fell below 50% 2173 | -9/Mines | Learned 2 Materials zone layouts 2195 | -9/Mines | Core integrity fell below 20% 2197 | -9/Mines | Discovered new exit (range 8) 2199 | -9/Mines | Destroyed by YI-UF0 with YI-UF0's Doublenader Last Messages --------------- 02020_ Destroyed Flight Unit. 02020_ Imp. Ion Engine destroyed. 02023_ S-10 Pest suffers critical hit (Burn). 02023_ S-10 Pest destroyed. 02023_ Switching to secondary target: S-10 Pest. 02026_ S-10 Pest destroyed. 02034_ Acquired 4 Protomatter. 02038_ Acquired 16 matter. 02155_ K-01 Serf collects debris. 02165_ Acquired 7 matter. 02173_ Acquired derelict log, extracted data. Data stored: Materials zone layouts (x2). 02185_ YI-UF0 mumbles something. 02186_ Lgt. Treads destroyed. 02190_ The unstable cave ceiling collapses. 02197_ Hvy. Assault Rifle destroyed. 02197_ EXIT=FOUND 02197_ Released control of Y-45 Defender. 02198_ The unstable cave ceiling collapses. 02198_ Y-45 Defender reactivates. Map ----- +----------------------------------------------------+ | ##?????????????????????????????????? | | #?????????????????????????????????? | | #?????????????????????????????????? | | ##?????????????????????????????????? | | #####??????????????????????????????????? | | #??????????????????????????????????????? | | ???????????????????????????????????????? | | ???????????????????????????????????????? | | ?????????????#?????????????????????????? | | #######???## ??????????????????????????? | | =!!%!%#?? ???????????????????????????? | | %*!=%!### #????????????????????????????? | | ####!!= #????????????????????????????? | | ???#*=#####??????????????????????? ????? | | ???# ##????????????????????????? ??? | | ???# #### #??#####??????? ??? | | ???# % #??## # ?????? #?? | | ???###%#### $ #??# ?????? #?? | | ????## #???????????# ##??? ! #?? | | ???## ##??????????# ####* #?? | | ???# #??????????# #?? | | ???# #???????????# ???? | | ???#[ ##???????????# % ?????? | | ??## ##########???# # <% #???????? | | #?# = #??## #?????????? | | #?# % #??# # @ #??????????? | | #?# ###### #??## ## #??????????? | | #?#!% #????# #?## ####??##?????? | | #?# ##????# #?# # #?????? | | #?# ###?????# ### #??????? | | #?# #???????# # Y #??????? | | ### %#???????# ### ###??????? | | #??????## #??###????????? | | ### #??????# ##?????????????? | | ### #??????# # #?????????????? | | #?????## g #?????????????? | | ######?????# #?????????????? | | ???????????### ##?????????????? | | ????????????# ####??????????????? | | ????????????### ##?????????????????? | | ?????????????##### ##??????????????????? | | | | | | | | | | | | | | | | | | | +----------------------------------------------------+ Best States ------------- Heat Dissipation 36 Energy Generation 17 Energy Capacity 215 Matter Stores 100 Matter Capacity 100 Sight Range 16 Terrain Scan Density 10 Armor Coverage 150 Resistance: EX 50 Resistance: I 25 Evasion (%) 50 Recoil Reduction 2 Item Schematics ----------------- None Robot Schematics ------------------ None Fabricated ------------ Nothing Repaired ---------- Nothing Studied --------- None Alien Tech Used ----------------- None Achievements -------------- None Challenges ------------ None Polymind | -11 -10 -9 -9 ---------- Run | Yrd Mat Mat Min Hosts 2 | . 1 1 . Combat Hostiles 1 | . . 1 . Allies . | . . . . Unique Host Classes 2 | . 1 1 . Average Host Suspicion 73 | . 62 52 86 Unsuspicious Activity 527 | . 2 515 10 Returns to Shadow 1 | . . 1 . Fuzzy Dispatches . | . . . . Protomatter Created 132 | . 5 42 85 Used 28 | . 5 23 . Decayed 15 | . . . 15 Highest Spend 23 | . 5 23 . Top 5 Hosts by Kills: Y-45 Defender (-9/Materials: 16) Game ------ Seed ShrapnelTargetingLaser Manual? 0 Play Time 00:09:30 Cumulative 79.7 hours Start 2025.12.28 @ 17:39:09 End 2025.12.28 @ 17:46:10 Sessions 1 Manual Loads 0 Difficulty Rogue Special Mode Winter2022/Polymind Game No. 125 Rogue 101 Adventurer 20 Explorer 4 Win Type - Total 1 Types 0/0/0/1/0/0/0/0/0/0 Lore% 46 Gallery% 42 Achievement% 33 Wizard Run 0 Options --------- Layout 1 ASCII 0 Keyboard 0 Movement Numpad Keybinds 0 Fullscreen 2 Font 24/Smallcaps Map View 50x35 Zoom Use 0% Tactical HUD 1 Map Filters NONE Filters NONE Steam 1 RUN: 7f83b3c4-5101-4bda-b5e9-ba391476e0fe